lending/lending_fUSD_20240703
["ID","MTS","AMOUNT","RATE_DAILY","PERIOD"]
[331011906,1720005042942,-167.62390754,0.00021817,2]
[331011907,1720005042952,-171.2311072,0.00021817,2]
[331011908,1720005042961,-270.68200983,0.00021817,2]
[331011909,1720005042971,-237.45421814,0.00021817,2]
[331011910,1720005042980,-1236.58472576,0.00021817,2]
[331011911,1720005042991,-157.44730638,0.00021817,2]
[331011912,1720005043000,-151.0,0.00021821,2]
[331011913,1720005043012,-1424.40263511,0.00021825,2]
[331011914,1720005043110,-154.82712235,0.0002,2]
[331011915,1720005043119,-154.82712235,0.0002,2]
[331011916,1720005043130,-1300.0,0.00021,2]
[331011917,1720005043139,-4855.10818487,0.00021825,2]
[331011918,1720005043148,-327.27195084,0.00021831,2]
[331011919,1720005043158,-6387.8056294,0.00021848,3]
[331011920,1720005043168,-157.19982356,0.00021854,2]
[331011921,1720005043177,-270.68200982,0.00021859,2]
[331011922,1720005043187,-237.45421812,0.00021859,2]
[331011923,1720005043196,-1236.58472575,0.00021859,2]
[331011924,1720005043207,-700.0,0.0002187,2]
[331011925,1720005043216,-700.0,0.0002187,2]
[331011926,1720005043226,-900.0,0.0002187,2]
[331011927,1720005043235,-882.39289391,0.0002187,2]
[331011928,1720005043249,-154.17138077,0.00021872,2]
[331011929,1720005043259,-365.78699378,0.00021875,2]
[331011930,1720005043268,-172.36615083,0.00021881,2]
[331011931,1720005043277,-2018.95610953,0.00021893,2]
[331011932,1720005043288,-151.4,0.00021896,2]
[331011933,1720005043298,-496.0,0.000219,4]
[331011934,1720005043307,-257.0,0.000219,2]
[331011935,1720005043317,-26992.45740326,0.000219,2]
[331011936,1720005043327,-270.68200982,0.000219,2]
[331011937,1720005043336,-237.45421812,0.000219,2]
[331011938,1720005043345,-1236.58472575,0.000219,2]
[331011939,1720005043355,-1000.0,0.000219,2]
[331011940,1720005043364,-151.4,0.00021906,2]
[331011941,1720005043374,-151.4,0.00021906,2]
[331011942,1720005043383,-738.4215802,0.00021906,2]
[331011943,1720005043392,-18131.8287226,0.00021906,2]
[331011944,1720005043401,-2963.4661922,0.00021906,2]
[331011945,1720005043411,-644.99976884,0.00021906,2]
[331011946,1720005043420,-156.04881459,0.00021906,2]
[331011947,1720005043430,-151.4,0.00021907,2]
[331011948,1720005043439,-151.4,0.00021907,2]
[331011949,1720005043448,-151.4,0.00021907,2]
[331011950,1720005043457,-716.63369653,0.00021911,2]
[331011951,1720005043467,-159.00626311,0.00021914,2]
[331011952,1720005043478,-209.7635483,0.00021916,2]
[331011953,1720005043490,-546.07843451,0.00021916,2]
[331011954,1720005043499,-276028.09308449,0.00021916,2]
[331011955,1720005043510,-72297.21996446,0.00021916,2]
[331011956,1720005043519,-25991.18282802,0.00021917,7]
[331011974,1720005043968,-154.82712235,0.0002,2]
[331011976,1720005043977,-154.82712235,0.0002,2]
[331011978,1720005043987,-154.82712235,0.0002,2]
[331011980,1720005043997,-154.82712235,0.0002,2]
[331011982,1720005044007,-154.82712235,0.0002,2]
[331011984,1720005044016,-154.82712235,0.0002,2]
[331011986,1720005044025,-154.82712235,0.0002,2]
[331011988,1720005044035,-154.82712235,0.0002,2]
[331011990,1720005044044,-154.82712235,0.0002,2]
[331011991,1720005044054,-154.82712235,0.0002,2]
[331011992,1720005044063,-716.63369653,0.00021906,2]
[331011993,1720005044072,-39656.91782411,0.00021917,7]
[331011994,1720005044347,-154.82712235,0.0002,2]
[331011995,1720005044357,-154.82712235,0.0002,2]
[331011996,1720005044366,-154.82712235,0.0002,2]
[331011997,1720005044376,-374149.1061718,0.00021917,7]
[331011998,1720005044385,-500.0,0.00021917,4]
[331011999,1720005044394,-500.0,0.00021917,4]
[331012000,1720005044403,-500.0,0.00021917,4]
[331012001,1720005044413,-500.0,0.00021917,4]
[331012002,1720005044422,-500.0,0.00021917,4]
[331012003,1720005044432,-500.0,0.00021917,4]
[331012004,1720005044441,-500.0,0.00021917,4]
[331012005,1720005044450,-500.0,0.00021917,4]
[331012006,1720005044460,-500.0,0.00021917,4]
[331012007,1720005044469,-500.0,0.00021917,4]
[331012008,1720005044478,-500.0,0.00021917,4]
[331012009,1720005044488,-500.0,0.00021917,4]
[331012010,1720005044498,-502.48846346,0.00021917,4]
[331012011,1720005044507,-500.0,0.00021917,4]
[331012012,1720005044516,-500.0,0.00021917,4]
[331012013,1720005044526,-500.0,0.00021917,4]
[331012014,1720005044535,-501.22551512,0.00021917,4]
[331012015,1720005044544,-500.0,0.00021917,4]
[331012016,1720005044553,-500.0,0.00021917,4]
[331012017,1720005044562,-500.0,0.00021917,4]
[331012018,1720005044571,-501.73519824,0.00021917,4]
[331012019,1720005044580,-500.0,0.00021917,4]
[331012020,1720005044589,-500.0,0.00021917,4]
[331012021,1720005044598,-500.0,0.00021917,4]
[331012022,1720005044607,-500.0,0.00021917,4]
[331012023,1720005044616,-502.30612382,0.00021917,4]
[331012024,1720005044625,-500.0,0.00021917,4]
[331012025,1720005044634,-500.0,0.00021917,4]
[331012026,1720005044644,-500.0,0.00021917,4]
[331012027,1720005044653,-503.86036203,0.00021917,4]
[331012028,1720005044662,-500.0,0.00021917,4]
[331012029,1720005044671,-500.0,0.00021917,4]
[331012030,1720005044682,-500.0,0.00021917,4]
[331012031,1720005044692,-503.53526895,0.00021917,4]
[331012032,1720005044706,-500.0,0.00021917,4]
[331012033,1720005044715,-500.0,0.00021917,4]
[331012034,1720005044724,-500.0,0.00021917,4]
[331012035,1720005044734,-500.0,0.00021917,4]
[331012036,1720005044744,-436.49982661,0.00021917,4]
[331012037,1720005044754,-500.0,0.00021917,4]
[331012038,1720005044764,-500.0,0.00021917,4]
[331012039,1720005044776,-502.50895253,0.00021917,4]
[331012040,1720005044785,-500.0,0.00021917,4]
[331012041,1720005044794,-500.0,0.00021917,4]
[331012042,1720005044803,-500.0,0.00021917,4]
[331012043,1720005044812,-503.29588367,0.00021917,4]
[331012044,1720005044821,-500.0,0.00021917,4]
[331012045,1720005044830,-530.22591375,0.00021917,4]
[331012046,1720005044839,-500.0,0.00021917,4]
[331012047,1720005044848,-501.20502879,0.00021917,4]
[331012048,1720005044856,-500.0,0.00021917,4]
[331012049,1720005044866,-501.61261882,0.00021917,4]
[331012050,1720005044875,-500.0,0.00021917,4]
[331012051,1720005044884,-500.0,0.00021917,4]
[331012052,1720005044892,-500.0,0.00021917,4]
[331012053,1720005044904,-500.0,0.00021917,4]
[331012054,1720005044917,-500.0,0.00021917,4]
[331012055,1720005044927,-500.0,0.00021917,4]
[331012056,1720005044937,-500.0,0.00021917,4]
[331012057,1720005045103,-500.0,0.00021917,4]
[331012058,1720005045112,-500.0,0.00021917,4]
[331012059,1720005045122,-500.0,0.00021917,4]
[331012060,1720005045132,-500.0,0.00021917,4]
[331012061,1720005045141,-500.0,0.00021917,4]
[331012062,1720005045151,-500.0,0.00021917,4]
[331012063,1720005045160,-500.0,0.00021917,4]
[331012064,1720005045169,-500.0,0.00021917,4]
[331012065,1720005045178,-259.78561629,0.00021917,4]
[331012066,1720005045187,-500.0,0.00021917,4]
[331012067,1720005045196,-500.0,0.00021917,4]
[331012068,1720005045206,-500.0,0.00021917,4]
[331012069,1720005045215,-504.83844222,0.00021917,4]
[331012070,1720005045224,-396.33348451,0.00021917,4]
[331012071,1720005045233,-500.0,0.00021917,4]
[331012072,1720005045243,-500.0,0.00021917,4]
[331012073,1720005045253,-500.76077075,0.00021917,4]
[331012074,1720005045262,-500.0,0.00021917,4]
[331012075,1720005045271,-500.0,0.00021917,4]
[331012076,1720005045281,-501.16878654,0.00021917,4]
[331012077,1720005045290,-500.0,0.00021917,4]
[331012078,1720005045300,-500.0,0.00021917,4]
[331012079,1720005045309,-500.0,0.00021917,4]
[331012080,1720005045319,-500.0,0.00021917,4]
[331012081,1720005045329,-199.49563582,0.00021917,4]
[331012082,1720005045339,-513.41282125,0.00021917,4]
[331012083,1720005045348,-501.46782858,0.00021917,4]
[331012084,1720005045357,-501.10110973,0.00021917,4]
[331012085,1720005045366,-311.00166106,0.00021917,4]
[331012086,1720005045376,-500.0,0.00021917,4]
[331012087,1720005045385,-246.97567519,0.00021917,4]
[331012088,1720005045394,-500.0,0.00021917,4]
[331012089,1720005045404,-500.0,0.00021917,4]
[331012090,1720005045413,-501.18163621,0.00021917,4]
[331012091,1720005045423,-500.0,0.00021917,4]
[331012092,1720005045432,-500.0,0.00021917,4]
[331012093,1720005045442,-497.64165952,0.00021917,4]
[331012094,1720005045451,-500.0,0.00021917,4]
[331012095,1720005045460,-504.67078891,0.00021917,4]
[331012096,1720005045469,-500.0,0.00021917,4]
[331012097,1720005045478,-500.0,0.00021917,4]
[331012098,1720005045487,-500.57605569,0.00021917,4]
[331012099,1720005045497,-500.0,0.00021917,4]
[331012100,1720005045507,-500.0,0.00021917,4]
[331012101,1720005045516,-500.0,0.00021917,4]
[331012102,1720005045525,-500.0,0.00021917,4]
[331012103,1720005045534,-500.0,0.00021917,4]
[331012104,1720005045544,-500.0,0.00021917,4]
[331012105,1720005045553,-500.0,0.00021917,4]
[331012106,1720005045561,-500.0,0.00021917,4]
[331012107,1720005045570,-500.0,0.00021917,4]
[331012108,1720005045579,-497.70209685,0.00021917,4]
[331012109,1720005045588,-500.0,0.00021917,4]
[331012110,1720005045598,-500.0,0.00021917,4]
[331012111,1720005045607,-500.0,0.00021917,4]
[331012112,1720005045616,-500.0,0.00021917,4]
[331012113,1720005045625,-500.0,0.00021917,4]
[331012114,1720005045634,-500.0,0.00021917,4]
[331012115,1720005045643,-500.0,0.00021917,4]
[331012116,1720005045652,-88.29696426,0.00021917,4]
[331012126,1720005047178,-154.82712235,0.0002,2]
[331012127,1720005047188,-154.82712235,0.0002,2]
[331012128,1720005047197,-154.82712235,0.0002,2]
[331012129,1720005047206,-154.82712235,0.0002,2]
[331012130,1720005047216,-154.82712235,0.0002,2]
[331012131,1720005047225,-154.82712235,0.0002,2]
[331012132,1720005047234,-154.82712235,0.0002,2]
[331012133,1720005047245,-154.82712235,0.0002,2]
[331012134,1720005047254,-154.82712235,0.0002,2]
[331012135,1720005047264,-154.82712235,0.0002,2]
[331012136,1720005047273,-251.7135543,0.00021916,2]
[331012137,1720005047284,-294.3648802,0.00021916,2]
[331012138,1720005047294,-411.70303574,0.00021917,4]
[331012139,1720005047302,-280.6225958,0.00021917,4]
[331012140,1720005047315,-219.3774042,0.00021917,4]
[331012141,1720005047324,-219.78785864,0.00021917,4]
[331012142,1720005047333,-289.6,0.00021917,4]
[331012143,1720005047342,-500.0,0.00021917,4]
[331012144,1720005047351,-500.0,0.00021917,4]
[331012145,1720005047360,-500.0,0.00021917,4]
[331012146,1720005047369,-500.0,0.00021917,4]
[331012148,1720005047378,-500.0,0.00021917,4]
[331012150,1720005047387,-500.40232574,0.00021917,4]
[331012152,1720005047396,-198.75678558,0.00021917,4]
[331012154,1720005047405,-500.0,0.00021917,4]
[331012156,1720005047414,-500.0,0.00021917,4]
[331012158,1720005047423,-500.35523907,0.00021917,4]
[331012159,1720005047432,-397.29651785,0.00021917,4]
[331012160,1720005047441,-500.0,0.00021917,4]
[331012161,1720005047451,-759.43,0.00021917,4]
[331012162,1720005047460,-759.43,0.00021917,4]
[331012163,1720005047469,-759.43,0.00021917,4]
[331012164,1720005047478,-500.0,0.00021917,4]
[331012165,1720005047487,-500.0,0.00021917,4]
[331012166,1720005047497,-759.43,0.00021917,4]
[331012167,1720005047506,-500.0,0.00021917,4]
[331012168,1720005047515,-759.43,0.00021917,4]
[331012169,1720005047524,-759.43,0.00021917,4]
[331012170,1720005047687,-500.0,0.00021917,4]
[331012171,1720005047702,-500.0,0.00021917,4]
[331012172,1720005047711,-759.43,0.00021917,4]
[331012173,1720005047721,-500.0,0.00021917,4]
[331012174,1720005047730,-759.43,0.00021917,4]
[331012175,1720005047741,-333.41886892,0.00021917,4]
[331012176,1720005047774,-426.01113108,0.00021917,4]
[331012177,1720005047785,-759.43,0.00021917,4]
[331012178,1720005047794,-759.43,0.00021917,4]
[331012179,1720005047804,-717.35206387,0.00021917,4]
[331012180,1720005047818,-42.07793613,0.00021917,4]
[331012181,1720005047827,-500.0,0.00021917,4]
[331012182,1720005047837,-39.39206387,0.00021917,4]
[331012183,1720005047879,-154.82712235,0.0002,2]
[331012184,1720005047888,-154.82712235,0.0002,2]
[331012185,1720005047898,-39.06881559,0.00021917,4]
[331012186,1720005112528,5536.93125481,0.00011199,2]
[331012187,1720005112558,228683.57320347,0.00011199,2]
[331012188,1720005119963,150.0,0.00011199,2]
[331012189,1720005119986,150.0,0.00011199,2]
[331012190,1720005120012,150.0,0.00011199,2]
[331012191,1720005120035,150.0,0.00011199,2]
[331012192,1720005120060,150.0,0.00011199,2]
[331012193,1720005120085,150.0,0.00011199,2]
[331012194,1720005120108,150.0,0.00011199,2]
[331012195,1720005120131,150.0,0.00011199,2]
[331012196,1720005120155,150.0,0.00011199,2]
[331012197,1720005120178,150.0,0.00011199,2]
[331012198,1720005120202,150.0,0.00011199,2]
[331012199,1720005120225,150.0,0.00011199,2]
[331012200,1720005120248,150.0,0.00011199,2]
[331012201,1720005120271,150.0,0.00011199,2]
[331012202,1720005120294,150.0,0.00011199,2]
[331012203,1720005120320,118922.23551279,0.00011199,2]
[331012205,1720005144524,150.0,0.00011199,2]
[331012206,1720005144547,5.0,0.00011199,2]
[331012211,1720005274509,145.0,0.00011199,2]
[331012212,1720005274531,10.0,0.00011199,2]
[331012213,1720005282532,140.0,0.00011199,2]
[331012214,1720005282554,15.0,0.00011199,2]
[331012215,1720005301618,135.0,0.00011199,2]
[331012216,1720005301639,270.37365165,0.00011199,2]
[331012217,1720005301663,193.98540509,0.00011199,2]
[331012218,1720005301687,23552.35767783,0.00011199,2]
[331012223,1720005387633,2916.63860723,0.00011199,2]
[331012225,1720005435173,155.0,0.00011199,2]
[331012226,1720005449498,193.85231866,0.00011199,2]
[331012227,1720005495075,161.28077976,0.00011199,2]
[331012228,1720005508933,5535.73906055,0.00011199,2]
[331012229,1720005519659,10000.0,0.00011199,2]
[331012230,1720005533025,155.0,0.00011199,2]
[331012231,1720005548025,155.0,0.00011199,2]
[331012232,1720005562589,19622.36291645,0.00011199,2]
[331012233,1720005574459,155.0,0.00011199,2]
[331012235,1720005589582,155.0,0.00011199,2]
[331012236,1720005611457,5381.66857514,0.00011199,2]
[331012237,1720005627360,9236.41322618,0.00011199,2]
[331012239,1720005674862,1435.09309199,0.00011199,2]
[331012241,1720005717694,155.61220125,0.00011199,2]
[331012242,1720005724336,1053.90679174,0.00011199,2]
[331012243,1720005805342,155.32775421,0.00011199,2]
[331012245,1720005837171,1252.34425535,0.00011199,2]
[331012250,1720006143800,163.73601725,0.00011199,2]
[331012251,1720006152570,157.5073195,0.00011199,2]
[331012252,1720006155896,482.75596204,0.00011199,2]
[331012253,1720006161837,366.36616793,0.00011199,2]
[331012256,1720006225202,1455.72875265,0.00011199,2]
[331012258,1720006232029,-165.03,0.00011636,2]
[331012260,1720006232042,-329.0,0.00012301,2]
[331012262,1720006232052,-155.68576621,0.00012302,4]
[331012264,1720006232061,-5674.87503318,0.00013474,2]
[331012266,1720006232074,-5870.77036682,0.00013474,2]
[331012268,1720006232084,-300.21600683,0.00013574,2]
[331012270,1720006232094,-2020.03059304,0.000136,2]
[331012272,1720006232104,-426.27,0.00013699,2]
[331012274,1720006232115,-422.2646,0.00013699,2]
[331012276,1720006232129,-2020.03059305,0.00013699,2]
[331012278,1720006232140,-24533.7666,0.000137,2]
[331012279,1720006232150,-166.94286736,0.0001379,2]
[331012280,1720006232160,-2279.7157,0.00013799,2]
[331012281,1720006232400,-38516.35164114,0.00013799,2]
[331012282,1720006232778,-1782.22711694,0.00013799,2]
[331012283,1720006232791,-484.55762474,0.00013799,2]
[331012284,1720006232860,-122623.22529204,0.00013799,2]
[331012285,1720006233528,-22.70284725,0.00013799,2]
[331012289,1720006238302,-150.0,0.00013699,2]
[331012290,1720006238316,-4866.0,0.00013799,2]
[331012293,1720006238997,-56769.71682389,0.00013799,2]
[331012323,1720006239447,-813.60966217,0.00013799,2]
[331012324,1720006239500,-12240.36627117,0.00013799,2]
[331012325,1720006239517,-1796.17067369,0.00013799,2]
[331012327,1720006240452,-1611.00544294,0.00013799,2]
[331012329,1720006240465,-1604.46511187,0.00013799,2]
[331012331,1720006241012,-1869.60149216,0.00013799,2]
[331012333,1720006241022,-1000.0,0.00013799,2]
[331012335,1720006241034,-45.54734306,0.00013799,2]
[331012337,1720006241051,-1989.9436,0.00013799,2]
[331012340,1720006241064,-736.61817881,0.00013799,2]
[331012342,1720006241076,-975.92796914,0.00013799,2]
[331012344,1720006241088,-359.5,0.00013907,2]
[331012346,1720006241099,-222.45374719,0.00014247,2]
[331012348,1720006241109,-336.19277364,0.00014518,2]
[331012349,1720006241124,-1086.34670665,0.00014518,2]
[331012350,1720006241140,-204.58051971,0.00014518,2]
[331012351,1720006241152,-3748.03709092,0.00014621,2]
[331012352,1720006241163,-277.35,0.00014817,2]
[331012353,1720006241174,-15433.33883135,0.00014999,2]
[331012354,1720006241184,-23900.0,0.00015226,2]
[331012355,1720006241195,-1000.0,0.00015243,2]
[331012356,1720006241207,-349.6567661,0.00015444,2]
[331012357,1720006241217,-359.5,0.00016171,2]
[331012358,1720006241227,-349.65676603,0.00016366,2]
[331012359,1720006241236,-150.0,0.00016444,2]
[331012360,1720006241247,-150.0,0.00016494,2]
[331012361,1720006241257,-1000.0,0.00017149,2]
[331012362,1720006241267,-349.65676603,0.00017289,2]
[331012363,1720006241277,-349.65676603,0.00018211,2]
[331012364,1720006241287,-359.5,0.00018435,2]
[331012365,1720006241297,-297.81079551,0.00018999,2]
[331012366,1720006241307,-1000.0,0.00019054,2]
[331012367,1720006241316,-1495.11925743,0.00019069,2]
[331012368,1720006241326,-182.08,0.00019105,2]
[331012369,1720006241336,-349.65676603,0.00019133,2]
[331012370,1720006241346,-250.0,0.00019178,2]
[331012371,1720006241356,-250.0,0.00019526,2]
[331012372,1720006241366,-155.0,0.00019548,2]
[331012373,1720006241376,-1274.88625925,0.0002,2]
[331012374,1720006241386,-349.65676603,0.00020055,2]
[331012375,1720006241395,-359.5,0.00020699,2]
[331012376,1720006241405,-165.716323,0.00020721,2]
[331012377,1720006241416,-1834.427294,0.00020721,2]
[331012378,1720006241426,-159.00626311,0.00020942,2]
[331012379,1720006241436,-1000.0,0.00020959,2]
[331012380,1720006241446,-349.65676603,0.00020978,2]
[331012381,1720006241459,-1834.427294,0.0002098,2]
[331012382,1720006241469,-152.12653755,0.00021008,2]
[331012383,1720006241479,-14473.65,0.0002108,6]
[331012384,1720006241489,-152.12653755,0.00021107,2]
[331012385,1720006241499,-155.23746038,0.00021138,2]
[331012386,1720006241509,-500.0,0.000212,7]
[331012387,1720006241520,-157.19982357,0.00021235,2]
[331012388,1720006241530,-1834.427294,0.00021239,2]
[331012389,1720006241541,-165.716323,0.00021239,2]
[331012390,1720006241551,-1100.0,0.000213,7]
[331012391,1720006241561,-1700.0,0.000214,7]
[331012392,1720006241572,-152.0,0.00021455,3]
[331012393,1720006241582,-159.00626311,0.00021486,2]
[331012394,1720006241591,-1834.427294,0.00021498,2]
[331012395,1720006241602,-2200.0,0.000215,7]
[331012396,1720006241613,-154.17138077,0.00021525,2]
[331012397,1720006241623,-2800.0,0.000216,7]
[331012398,1720006241632,-214.38566774,0.00021643,2]
[331012399,1720006241642,-184.27,0.00021644,2]
[331012400,1720006241652,-158.57281556,0.00021689,2]
[331012401,1720006241661,-500.0,0.000217,7]
[331012402,1720006241671,-500.0,0.00021742,2]
[331012403,1720006241682,-1834.427294,0.00021757,2]
[331012404,1720006241692,-165.716323,0.00021757,2]
[331012405,1720006241705,-150.0,0.00021783,2]
[331012406,1720006241715,-500.0,0.000218,7]
[331012407,1720006241725,-7500.0,0.00021817,2]
[331012408,1720006241735,-196.52952353,0.00021817,2]
[331012409,1720006241744,-167.49805714,0.00021817,2]
[331012410,1720006241754,-223.81763517,0.00021817,2]
[331012411,1720006241764,-150.0,0.00021831,2]
[331012412,1720006241774,-3172.88245229,0.00021851,2]
[331012413,1720006241784,-400.0,0.0002187,2]
[331012414,1720006241793,-2005.83489757,0.00021875,2]
[331012415,1720006241803,-150.0,0.00021876,2]
[331012416,1720006241813,-167.49805714,0.00021878,2]
[331012417,1720006241824,-188.22778166,0.00021894,2]
[331012418,1720006241834,-500.0,0.000219,7]
[331012419,1720006241843,-264.0,0.000219,2]
[331012420,1720006241854,-349.65676603,0.000219,2]
[331012421,1720006241864,-3595.9577306,0.00021906,2]
[331012422,1720006241874,-891.3639093,0.00021906,2]
[331012423,1720006241884,-22001.6984958,0.00021906,2]
[331012424,1720006241894,-365.78699378,0.00021906,2]
[331012425,1720006241904,-365.78699378,0.00021906,2]
[331012426,1720006241914,-151.41,0.00021907,2]
[331012427,1720006241924,-151.41,0.00021907,2]
[331012428,1720006241934,-151.41,0.00021907,2]
[331012429,1720006241944,-151.41,0.00021907,2]
[331012430,1720006241955,-223.81763517,0.00021915,2]
[331012431,1720006241965,-213.15790435,0.00021916,2]
[331012432,1720006241975,-461.33334463,0.00021916,2]
[331012433,1720006241985,-201.37307609,0.00021916,2]
[331012434,1720006241995,-1648.0,0.00021917,2]
[331012435,1720006242006,-1269.0,0.00021917,2]
[331012436,1720006242015,-477.682,0.00021917,2]
[331012437,1720006242026,-612.0,0.00021917,2]
[331012438,1720006242039,-67896.75386715,0.00021917,7]
[331012439,1720006242053,-1656.10816798,0.00021917,7]
[331012440,1720006242066,-12104.3997,0.00021917,7]
[331012441,1720006242079,-892.19844599,0.00021917,7]
[331012442,1720006242091,-14918.31365012,0.00021917,7]
[331012443,1720006242103,-277.8502992,0.00021917,7]
[331012461,1720006243483,-32161.54202259,0.00021917,7]
[331012462,1720006243495,-2135.7030306,0.00021917,7]
[331012463,1720006243508,-475.67259041,0.00021917,7]
[331012464,1720006243520,-1242.1850738,0.00021917,7]
[331012465,1720006243532,-1809.24634643,0.00021917,7]
[331012466,1720006244028,-427.59840357,0.00021917,7]
[331012467,1720006244045,-478.75875562,0.00021917,7]
[331012470,1720006244062,-1880.3321252,0.00021917,7]
[331012472,1720006244074,-268616.4940192,0.00021917,7]
[331012475,1720006244084,-500.0,0.00021917,4]
[331012478,1720006244093,-500.0,0.00021917,4]
[331012481,1720006244103,-500.0,0.00021917,4]
[331012484,1720006244113,-500.0,0.00021917,4]
[331012486,1720006244126,-502.17398464,0.00021917,4]
[331012488,1720006244137,-500.0,0.00021917,4]
[331012490,1720006244147,-500.0,0.00021917,4]
[331012492,1720006244157,-502.50895253,0.00021917,4]
[331012494,1720006244167,-500.0,0.00021917,4]
[331012496,1720006244177,-500.0,0.00021917,4]
[331012498,1720006244187,-500.0,0.00021917,4]
[331012500,1720006244196,-503.29588367,0.00021917,4]
[331012502,1720006244207,-500.0,0.00021917,4]
[331012504,1720006244216,-530.22591375,0.00021917,4]
[331012506,1720006244225,-500.0,0.00021917,4]
[331012508,1720006244235,-501.20502879,0.00021917,4]
[331012510,1720006244245,-500.0,0.00021917,4]
[331012512,1720006244254,-501.61261882,0.00021917,4]
[331012514,1720006244264,-500.0,0.00021917,4]
[331012516,1720006244274,-500.0,0.00021917,4]
[331012518,1720006244283,-500.0,0.00021917,4]
[331012520,1720006244293,-500.0,0.00021917,4]
[331012522,1720006244303,-500.0,0.00021917,4]
[331012524,1720006244312,-500.0,0.00021917,4]
[331012526,1720006244323,-500.0,0.00021917,4]
[331012528,1720006244333,-500.0,0.00021917,4]
[331012530,1720006244343,-500.0,0.00021917,4]
[331012532,1720006244352,-500.0,0.00021917,4]
[331012534,1720006244362,-500.0,0.00021917,4]
[331012536,1720006244372,-500.0,0.00021917,4]
[331012537,1720006244382,-500.0,0.00021917,4]
[331012538,1720006244391,-500.0,0.00021917,4]
[331012539,1720006244401,-500.0,0.00021917,4]
[331012540,1720006244410,-259.78561629,0.00021917,4]
[331012541,1720006244420,-500.0,0.00021917,4]
[331012542,1720006244429,-500.0,0.00021917,4]
[331012543,1720006244439,-500.0,0.00021917,4]
[331012544,1720006244448,-504.83844222,0.00021917,4]
[331012545,1720006244459,-396.33348451,0.00021917,4]
[331012546,1720006244468,-500.0,0.00021917,4]
[331012547,1720006244478,-500.0,0.00021917,4]
[331012548,1720006244487,-500.76077075,0.00021917,4]
[331012549,1720006244497,-500.0,0.00021917,4]
[331012550,1720006244506,-500.0,0.00021917,4]
[331012551,1720006244516,-500.0,0.00021917,4]
[331012552,1720006244527,-500.0,0.00021917,4]
[331012553,1720006244537,-501.16878654,0.00021917,4]
[331012554,1720006244548,-500.0,0.00021917,4]
[331012555,1720006244557,-517.38,0.00021917,4]
[331012556,1720006244567,-500.0,0.00021917,4]
[331012557,1720006244577,-500.0,0.00021917,4]
[331012558,1720006244586,-500.0,0.00021917,4]
[331012559,1720006244595,-500.0,0.00021917,4]
[331012560,1720006244606,-199.49563582,0.00021917,4]
[331012561,1720006244615,-500.0,0.00021917,4]
[331012562,1720006244625,-500.0,0.00021917,4]
[331012563,1720006244634,-500.0,0.00021917,4]
[331012564,1720006244644,-500.0,0.00021917,4]
[331012565,1720006244653,-500.0,0.00021917,4]
[331012566,1720006244663,-513.41282125,0.00021917,4]
[331012567,1720006244673,-501.46782858,0.00021917,4]
[331012568,1720006244682,-500.0,0.00021917,4]
[331012569,1720006244692,-500.0,0.00021917,4]
[331012570,1720006244701,-500.0,0.00021917,4]
[331012571,1720006244711,-500.0,0.00021917,4]
[331012572,1720006244721,-500.0,0.00021917,4]
[331012573,1720006244731,-500.0,0.00021917,4]
[331012574,1720006244741,-500.0,0.00021917,4]
[331012575,1720006244750,-500.0,0.00021917,4]
[331012576,1720006244759,-501.10110973,0.00021917,4]